[Event "*** SCC Grand Prix: Titled Tuesday Blitz"]
[Site "Chess.com"]
[Date "2020.08.11"]
[Round "9"]
[White "FMOlexandrProhorov"]
[Black "allvim"]
[Result "0-1"]
[WhiteElo "2143"]
[BlackElo "2376"]
[TimeControl "180+1"]
[EndTime "11:45:32 PDT"]
[Termination "allvim won by resignation"]

1. Nf3 {[%clk 0:02:57.2]} 1... Nf6 {[%clk 0:02:59.1]} 2. c4 {[%clk 0:02:56.8]}
2... e6 {[%clk 0:02:53]} 3. Nc3 {[%clk 0:02:57.7]} 3... d5 {[%clk 0:02:53.1]} 4.
d4 {[%clk 0:02:58.1]} 4... Be7 {[%clk 0:02:52.7]} 5. Bf4 {[%clk 0:02:58.2]} 5...
a6 {[%clk 0:02:52]} 6. e3 {[%clk 0:02:57.8]} 6... O-O {[%clk 0:02:52.3]} 7. Rc1
{[%clk 0:02:55.9]} 7... dxc4 {[%clk 0:02:48.4]} 8. Bxc4 {[%clk 0:02:55.1]} 8...
b5 {[%clk 0:02:48.2]} 9. Bd3 {[%clk 0:02:53.3]} 9... Bb7 {[%clk 0:02:48.6]} 10.
O-O {[%clk 0:02:53.1]} 10... Nbd7 {[%clk 0:02:48.3]} 11. Qe2 {[%clk 0:02:52.8]}
11... c5 {[%clk 0:02:48.2]} 12. Rfd1 {[%clk 0:02:50.5]} 12... cxd4 {[%clk
0:02:47.6]} 13. exd4 {[%clk 0:02:47.1]} 13... Nb6 {[%clk 0:02:43.5]} 14. Bb1
{[%clk 0:02:44.5]} 14... Nbd5 {[%clk 0:02:41.6]} 15. Bg3 {[%clk 0:02:43.6]}
15... Rc8 {[%clk 0:02:36.7]} 16. Ne4 {[%clk 0:02:34.5]} 16... Ba8 {[%clk
0:02:18.7]} 17. Rxc8 {[%clk 0:02:28.1]} 17... Qxc8 {[%clk 0:02:18.4]} 18. a3
{[%clk 0:01:55.6]} 18... Nxe4 {[%clk 0:02:06.5]} 19. Qxe4 {[%clk 0:01:55.1]}
19... Nf6 {[%clk 0:02:06.4]} 20. Qe2 {[%clk 0:01:49.4]} 20... Rd8 {[%clk
0:02:02.7]} 21. Bh4 {[%clk 0:01:38.3]} 21... Qb7 {[%clk 0:01:52.5]} 22. h3
{[%clk 0:01:26.7]} 22... Nd5 {[%clk 0:01:30.3]} 23. Bxe7 {[%clk 0:01:25.4]}
23... Qxe7 {[%clk 0:01:30.1]} 24. Qe4 {[%clk 0:01:23.6]} 24... Nf6 {[%clk
0:01:28.8]} 25. Qf4 {[%clk 0:01:22.3]} 25... Qb7 {[%clk 0:01:23.9]} 26. Qg3
{[%clk 0:01:14.1]} 26... Qd5 {[%clk 0:01:04.7]} 27. Rc1 {[%clk 0:01:03.7]} 27...
Qb3 {[%clk 0:00:21]} 28. Qc7 {[%clk 0:00:57.9]} 28... Rf8 {[%clk 0:00:20.6]} 29.
Qc3 {[%clk 0:00:38.9]} 29... Qd5 {[%clk 0:00:16.8]} 30. b4 {[%clk 0:00:35.4]}
30... Qh5 {[%clk 0:00:16.6]} 31. Qe3 {[%clk 0:00:34.8]} 31... h6 {[%clk
0:00:15.4]} 32. Rc7 {[%clk 0:00:33.5]} 32... Nd5 {[%clk 0:00:14.6]} 33. Qe2
{[%clk 0:00:29.6]} 33... Nxc7 {[%clk 0:00:12.8]} 34. Ba2 {[%clk 0:00:27.9]}
34... Bd5 {[%clk 0:00:11.6]} 35. Bb1 {[%clk 0:00:27.4]} 35... Rd8 {[%clk
0:00:09.8]} 36. Qe3 {[%clk 0:00:26.9]} 36... Bxf3 {[%clk 0:00:09.8]} 37. gxf3
{[%clk 0:00:27.1]} 37... Qg5+ {[%clk 0:00:10.4]} 38. Qxg5 {[%clk 0:00:25.5]}
38... hxg5 {[%clk 0:00:11.3]} 0-1

[Event "*** SCC Grand Prix: Titled Tuesday Blitz"]
[Site "Chess.com"]
[Date "2020.08.11"]
[Round "9"]
[White "MF1966Idrisov"]
[Black "esrosenberg"]
[Result "1-0"]
[WhiteElo "2385"]
[BlackElo "2185"]
[TimeControl "180+1"]
[EndTime "11:45:33 PDT"]
[Termination "MF1966Idrisov won on time"]

1. Nf3 {[%clk 0:03:00.9]} 1... Nf6 {[%clk 0:03:00]} 2. b3 {[%clk 0:03:00.9]}
2... g6 {[%clk 0:02:57.9]} 3. Bb2 {[%clk 0:03:01]} 3... Bg7 {[%clk 0:02:58.4]}
4. c4 {[%clk 0:03:01.5]} 4... b6 {[%clk 0:02:55.2]} 5. g3 {[%clk 0:03:01.2]}
5... Bb7 {[%clk 0:02:55.5]} 6. Bg2 {[%clk 0:03:01.3]} 6... c5 {[%clk 0:02:49.1]}
7. O-O {[%clk 0:03:01]} 7... h5 {[%clk 0:02:41.7]} 8. d4 {[%clk 0:02:58.9]} 8...
cxd4 {[%clk 0:02:41.2]} 9. Nxd4 {[%clk 0:02:58.6]} 9... Bxg2 {[%clk 0:02:39.6]}
10. Kxg2 {[%clk 0:02:58.7]} 10... h4 {[%clk 0:02:35.6]} 11. Nc3 {[%clk
0:02:58.2]} 11... h3+ {[%clk 0:02:33.5]} 12. Kg1 {[%clk 0:02:57.8]} 12... Qc8
{[%clk 0:02:25.9]} 13. Nd5 {[%clk 0:02:51.8]} 13... Qb7 {[%clk 0:02:16.1]} 14.
Nxf6+ {[%clk 0:02:15]} 14... Bxf6 {[%clk 0:02:13]} 15. f3 {[%clk 0:02:15.1]}
15... Nc6 {[%clk 0:01:39.5]} 16. Rb1 {[%clk 0:02:13]} 16... Nxd4 {[%clk
0:01:30.5]} 17. Bxd4 {[%clk 0:02:12.1]} 17... Bxd4+ {[%clk 0:01:30.5]} 18. Qxd4
{[%clk 0:02:11.5]} 18... O-O-O {[%clk 0:01:21.6]} 19. Qf4 {[%clk 0:01:53.3]}
19... f6 {[%clk 0:01:09.1]} 20. Rfd1 {[%clk 0:01:48.7]} 20... g5 {[%clk
0:01:02.1]} 21. Qf5 {[%clk 0:01:42.7]} 21... Qc6 {[%clk 0:00:40]} 22. Rd4 {[%clk
0:01:22.6]} 22... e6 {[%clk 0:00:30.1]} 23. Qxf6 {[%clk 0:01:01.5]} 23... Rdf8
{[%clk 0:00:26.5]} 24. Qxg5 {[%clk 0:00:54.2]} 24... Rf5 {[%clk 0:00:15]} 25.
Qe3 {[%clk 0:00:50.2]} 25... Rhf8 {[%clk 0:00:13]} 26. Rf1 {[%clk 0:00:48.3]}
26... a5 {[%clk 0:00:12.1]} 27. Re4 {[%clk 0:00:43.6]} 27... a4 {[%clk
0:00:10.5]} 28. bxa4 {[%clk 0:00:42.4]} 28... Qxa4 {[%clk 0:00:09.6]} 29. Qxb6
{[%clk 0:00:37.3]} 29... Qa8 {[%clk 0:00:07.1]} 30. Qe3 {[%clk 0:00:28.4]} 30...
Kc7 {[%clk 0:00:05.3]} 31. Rd1 {[%clk 0:00:23.5]} 31... Qc6 {[%clk 0:00:03.4]}
32. Red4 {[%clk 0:00:21.3]} 32... R8f7 {[%clk 0:00:02.3]} 33. c5 {[%clk
0:00:19.3]} 33... Rxc5 {[%clk 0:00:01]} 34. Qa3 {[%clk 0:00:15.9]} 1-0

[Event "*** SCC Grand Prix: Titled Tuesday Blitz"]
[Site "Chess.com"]
[Date "2020.08.11"]
[Round "9"]
[White "Leonid_Starozhilov"]
[Black "Guenplen"]
[Result "0-1"]
[WhiteElo "2699"]
[BlackElo "2875"]
[TimeControl "180+1"]
[EndTime "11:45:35 PDT"]
[Termination "Guenplen won by resignation"]

1. b3 {[%clk 0:03:00.3]} 1... d5 {[%clk 0:02:59.8]} 2. Bb2 {[%clk 0:03:00.2]}
2... Bf5 {[%clk 0:03:00.4]} 3. Nf3 {[%clk 0:03:00.4]} 3... e6 {[%clk 0:03:01]}
4. e3 {[%clk 0:03:00.6]} 4... h6 {[%clk 0:03:01.2]} 5. d4 {[%clk 0:03:00.5]}
5... Nf6 {[%clk 0:03:00.9]} 6. Bd3 {[%clk 0:03:00.4]} 6... Ne4 {[%clk
0:02:59.5]} 7. O-O {[%clk 0:02:55.4]} 7... Nd7 {[%clk 0:02:59.3]} 8. c4 {[%clk
0:02:43.6]} 8... c6 {[%clk 0:02:54.6]} 9. Nc3 {[%clk 0:02:43.1]} 9... Bd6 {[%clk
0:02:49]} 10. Qc2 {[%clk 0:02:40]} 10... Nxc3 {[%clk 0:02:43.7]} 11. Bxc3 {[%clk
0:02:33.4]} 11... Bxd3 {[%clk 0:02:38.8]} 12. Qxd3 {[%clk 0:02:33.4]} 12... Nf6
{[%clk 0:02:33.9]} 13. Nd2 {[%clk 0:01:53.7]} 13... O-O {[%clk 0:02:06.4]} 14.
Rfe1 {[%clk 0:01:46.1]} 14... Qb8 {[%clk 0:01:55.6]} 15. h3 {[%clk 0:01:42.3]}
15... b5 {[%clk 0:01:41.7]} 16. e4 {[%clk 0:01:29.7]} 16... Bf4 {[%clk
0:01:33.6]} 17. e5 {[%clk 0:01:09.8]} 17... Bxd2 {[%clk 0:01:31.8]} 18. Bxd2
{[%clk 0:00:57.3]} 18... dxc4 {[%clk 0:01:31.3]} 19. Qg3 {[%clk 0:00:53.1]}
19... Ne8 {[%clk 0:01:12.2]} 20. bxc4 {[%clk 0:00:38.7]} 20... Kh8 {[%clk
0:01:06.6]} 21. Rab1 {[%clk 0:00:29.2]} 21... Qd8 {[%clk 0:01:01.3]} 22. cxb5
{[%clk 0:00:16.5]} 22... cxb5 {[%clk 0:01:02.2]} 23. Bb4 {[%clk 0:00:15.1]}
23... Rg8 {[%clk 0:01:02]} 24. Red1 {[%clk 0:00:11.8]} 24... Qd5 {[%clk
0:00:57.1]} 25. Bc5 {[%clk 0:00:09.3]} 25... a6 {[%clk 0:00:55]} 26. a4 {[%clk
0:00:08.1]} 26... bxa4 {[%clk 0:00:51.5]} 27. Qa3 {[%clk 0:00:08.7]} 27... Nc7
{[%clk 0:00:50.1]} 28. Qxa4 {[%clk 0:00:08.9]} 28... Nb5 {[%clk 0:00:50.6]} 29.
Qa5 {[%clk 0:00:09.2]} 29... Rgc8 {[%clk 0:00:45.8]} 30. Ra1 {[%clk 0:00:08.1]}
30... Kh7 {[%clk 0:00:41.5]} 31. Qb4 {[%clk 0:00:08]} 31... Qe4 {[%clk
0:00:32.7]} 32. Re1 {[%clk 0:00:07.4]} 32... Qf5 {[%clk 0:00:31.7]} 33. Rad1
{[%clk 0:00:04.4]} 33... Nc7 {[%clk 0:00:31.5]} 34. Rd3 {[%clk 0:00:02.7]} 34...
Qxd3 {[%clk 0:00:29.3]} 35. Re3 {[%clk 0:00:03.1]} 35... Qd1+ {[%clk 0:00:25.2]}
36. Kh2 {[%clk 0:00:03.1]} 36... Nd5 {[%clk 0:00:25.2]} 37. Qb3 {[%clk
0:00:02.1]} 37... Qxb3 {[%clk 0:00:24.1]} 0-1

[Event "*** SCC Grand Prix: Titled Tuesday Blitz"]
[Site "Chess.com"]
[Date "2020.08.11"]
[Round "9"]
[White "TurboSteen"]
[Black "Resignify"]
[Result "0-1"]
[WhiteElo "2004"]
[BlackElo "2201"]
[TimeControl "180+1"]
[EndTime "11:45:35 PDT"]
[Termination "Resignify won on time"]

1. e4 {[%clk 0:02:43.4]} 1... d6 {[%clk 0:02:58.8]} 2. d4 {[%clk 0:02:41.7]}
2... Nf6 {[%clk 0:02:59]} 3. Nc3 {[%clk 0:02:41.3]} 3... g6 {[%clk 0:02:58.3]}
4. Bf4 {[%clk 0:02:39.6]} 4... c6 {[%clk 0:02:57.7]} 5. Qd2 {[%clk 0:02:38.4]}
5... Qa5 {[%clk 0:02:50.4]} 6. O-O-O {[%clk 0:02:35.4]} 6... b5 {[%clk
0:02:50.2]} 7. Bd3 {[%clk 0:02:30.6]} 7... Nbd7 {[%clk 0:02:22.7]} 8. Nf3 {[%clk
0:02:16.8]} 8... b4 {[%clk 0:01:56.5]} 9. Nb1 {[%clk 0:02:13.2]} 9... Qxa2
{[%clk 0:01:33.7]} 10. e5 {[%clk 0:01:22.9]} 10... Nd5 {[%clk 0:01:32.5]} 11.
exd6 {[%clk 0:01:18.8]} 11... Nxf4 {[%clk 0:01:02.2]} 12. Qxf4 {[%clk
0:01:08.4]} 12... exd6 {[%clk 0:00:48.8]} 13. Rhe1+ {[%clk 0:01:06.1]} 13... Kd8
{[%clk 0:00:48.5]} 14. Ng5 {[%clk 0:01:03.1]} 14... Bh6 {[%clk 0:00:28.5]} 15.
Nxf7+ {[%clk 0:00:58.8]} 15... Qxf7 {[%clk 0:00:28]} 16. Qxh6 {[%clk 0:00:56.1]}
16... Kc7 {[%clk 0:00:20.7]} 17. Qg5 {[%clk 0:00:44.2]} 17... Nf6 {[%clk
0:00:17.9]} 18. Re3 {[%clk 0:00:34.6]} 18... Nd5 {[%clk 0:00:11.3]} 19. Bc4
{[%clk 0:00:24.8]} 19... Re8 {[%clk 0:00:08.8]} 20. Rxe8 {[%clk 0:00:18.5]}
20... Qxe8 {[%clk 0:00:09.7]} 21. Bxd5 {[%clk 0:00:17.4]} 21... cxd5 {[%clk
0:00:10.6]} 22. Qxd5 {[%clk 0:00:15.9]} 22... Bb7 {[%clk 0:00:10.3]} 23. Qc4+
{[%clk 0:00:14.5]} 23... Qc6 {[%clk 0:00:08.2]} 24. Qxc6+ {[%clk 0:00:09.9]}
24... Bxc6 {[%clk 0:00:09.1]} 25. f3 {[%clk 0:00:09.2]} 25... Re8 {[%clk
0:00:08.4]} 26. Kd2 {[%clk 0:00:07.9]} 26... Bd5 {[%clk 0:00:06]} 27. Re1 {[%clk
0:00:05.3]} 27... Rxe1 {[%clk 0:00:06]} 28. Kxe1 {[%clk 0:00:04.1]} 28... a5
{[%clk 0:00:06.9]} 29. Kd2 {[%clk 0:00:02.6]} 29... a4 {[%clk 0:00:07.2]} 30. c4
{[%clk 0:00:01.4]} 30... Bxc4 {[%clk 0:00:05]} 0-1

[Event "*** SCC Grand Prix: Titled Tuesday Blitz"]
[Site "Chess.com"]
[Date "2020.08.11"]
[Round "9"]
[White "carlsen1001"]
[Black "Legendinunknown"]
[Result "0-1"]
[WhiteElo "2419"]
[BlackElo "2600"]
[TimeControl "180+1"]
[EndTime "11:45:37 PDT"]
[Termination "Legendinunknown won by resignation"]

1. Nf3 {[%clk 0:03:00.9]} 1... Nf6 {[%clk 0:02:57.5]} 2. c4 {[%clk 0:03:00.5]}
2... g6 {[%clk 0:02:55.7]} 3. Nc3 {[%clk 0:03:00.6]} 3... Bg7 {[%clk 0:02:56]}
4. d4 {[%clk 0:03:00.4]} 4... d6 {[%clk 0:02:56]} 5. g3 {[%clk 0:03:00.8]} 5...
O-O {[%clk 0:02:56.3]} 6. Bg2 {[%clk 0:03:01.1]} 6... c5 {[%clk 0:02:56.5]} 7.
d5 {[%clk 0:02:59]} 7... e6 {[%clk 0:02:46.1]} 8. O-O {[%clk 0:02:55.8]} 8...
exd5 {[%clk 0:02:44.1]} 9. cxd5 {[%clk 0:02:55.5]} 9... a6 {[%clk 0:02:42]} 10.
a4 {[%clk 0:02:55]} 10... Nbd7 {[%clk 0:02:41.2]} 11. e4 {[%clk 0:02:54.2]}
11... Re8 {[%clk 0:02:41.1]} 12. Nd2 {[%clk 0:02:53.8]} 12... b6 {[%clk
0:02:37.6]} 13. Nc4 {[%clk 0:02:51.9]} 13... Ne5 {[%clk 0:02:19.4]} 14. Nxe5
{[%clk 0:02:49.8]} 14... Rxe5 {[%clk 0:02:17.2]} 15. f4 {[%clk 0:02:48.5]} 15...
Re8 {[%clk 0:02:16.1]} 16. Re1 {[%clk 0:02:48.7]} 16... Ra7 {[%clk 0:02:07]} 17.
Bd2 {[%clk 0:02:30.1]} 17... Ng4 {[%clk 0:02:01.4]} 18. Bf3 {[%clk 0:02:08.6]}
18... h5 {[%clk 0:01:50.4]} 19. Kg2 {[%clk 0:01:59.8]} 19... Bd4 {[%clk
0:01:45]} 20. Ne2 {[%clk 0:01:48.2]} 20... Bxb2 {[%clk 0:01:23.7]} 21. Rb1
{[%clk 0:01:47.3]} 21... Bg7 {[%clk 0:01:23.8]} 22. Qb3 {[%clk 0:01:44.7]} 22...
b5 {[%clk 0:01:14.4]} 23. Nc3 {[%clk 0:01:04.4]} 23... b4 {[%clk 0:01:09.2]} 24.
Nd1 {[%clk 0:01:04.6]} 24... Rae7 {[%clk 0:00:59.3]} 25. Nb2 {[%clk 0:00:25.1]}
25... Bd4 {[%clk 0:00:51.6]} 26. Nc4 {[%clk 0:00:22.1]} 26... Nf2 {[%clk
0:00:44.7]} 27. Qc2 {[%clk 0:00:20]} 27... Bh3+ {[%clk 0:00:42.5]} 28. Kg1
{[%clk 0:00:18.8]} 28... Nxe4+ {[%clk 0:00:36.7]} 29. Be3 {[%clk 0:00:18.8]}
29... Bg7 {[%clk 0:00:28.9]} 30. Rbd1 {[%clk 0:00:10.1]} 30... Bf5 {[%clk
0:00:26.1]} 31. Qb3 {[%clk 0:00:07.7]} 31... Nc3 {[%clk 0:00:25.8]} 32. Rd2
{[%clk 0:00:06.8]} 32... Bd7 {[%clk 0:00:23.8]} 33. a5 {[%clk 0:00:04.3]} 33...
Bb5 {[%clk 0:00:23.5]} 34. Nb6 {[%clk 0:00:03]} 34... Rxe3 {[%clk 0:00:22.7]}
0-1

[Event "*** SCC Grand Prix: Titled Tuesday Blitz"]
[Site "Chess.com"]
[Date "2020.08.11"]
[Round "9"]
[White "ZverevLev"]
[Black "Nafania1"]
[Result "1/2-1/2"]
[WhiteElo "2326"]
[BlackElo "2460"]
[TimeControl "180+1"]
[EndTime "11:45:37 PDT"]
[Termination "Game drawn - insufficient material"]

1. e4 {[%clk 0:03:00.9]} 1... e6 {[%clk 0:02:59.8]} 2. d4 {[%clk 0:02:59.1]}
2... d5 {[%clk 0:02:59.9]} 3. Nc3 {[%clk 0:02:56.2]} 3... h6 {[%clk 0:02:59.8]}
4. Nf3 {[%clk 0:02:51.2]} 4... Nf6 {[%clk 0:02:59.5]} 5. e5 {[%clk 0:02:47]}
5... Ne4 {[%clk 0:02:58.3]} 6. Bd3 {[%clk 0:02:45.2]} 6... Bb4 {[%clk
0:02:58.4]} 7. O-O {[%clk 0:02:40.7]} 7... Nxc3 {[%clk 0:02:58.3]} 8. bxc3
{[%clk 0:02:41.5]} 8... Bxc3 {[%clk 0:02:58.8]} 9. Rb1 {[%clk 0:02:38.9]} 9...
Nc6 {[%clk 0:02:58.7]} 10. Ba3 {[%clk 0:02:32.5]} 10... a5 {[%clk 0:02:58]} 11.
Bb5 {[%clk 0:02:28.3]} 11... Bd7 {[%clk 0:02:58.3]} 12. Bxc6 {[%clk 0:02:14.9]}
12... Bxc6 {[%clk 0:02:58.1]} 13. Rb3 {[%clk 0:02:15.4]} 13... Bb4 {[%clk
0:02:56.1]} 14. Bxb4 {[%clk 0:02:15.2]} 14... axb4 {[%clk 0:02:56.5]} 15. Rxb4
{[%clk 0:02:16.1]} 15... Rxa2 {[%clk 0:02:56.2]} 16. Qb1 {[%clk 0:02:13.8]}
16... Qa8 {[%clk 0:02:53.6]} 17. Nd2 {[%clk 0:02:09.6]} 17... O-O {[%clk
0:02:50.3]} 18. f4 {[%clk 0:02:07.6]} 18... b6 {[%clk 0:02:44.7]} 19. f5 {[%clk
0:02:04.6]} 19... exf5 {[%clk 0:02:45]} 20. Rb2 {[%clk 0:01:58.1]} 20... Rxb2
{[%clk 0:02:37.6]} 21. Qxb2 {[%clk 0:01:59]} 21... Bd7 {[%clk 0:02:37.4]} 22.
Qc3 {[%clk 0:01:55.7]} 22... Qc6 {[%clk 0:02:34.7]} 23. Qxc6 {[%clk 0:01:54.1]}
23... Bxc6 {[%clk 0:02:34.7]} 24. Rxf5 {[%clk 0:01:55]} 24... Ra8 {[%clk
0:02:32.7]} 25. Rf1 {[%clk 0:01:50.8]} 25... Ra2 {[%clk 0:02:31.1]} 26. Rc1
{[%clk 0:01:50]} 26... Ba4 {[%clk 0:02:31.2]} 27. Nb3 {[%clk 0:01:41.9]} 27...
Rb2 {[%clk 0:02:27.6]} 28. Kf1 {[%clk 0:01:37.5]} 28... Kf8 {[%clk 0:02:22.2]}
29. g4 {[%clk 0:01:26.7]} 29... Ke7 {[%clk 0:02:22]} 30. h4 {[%clk 0:01:25.5]}
30... Kd7 {[%clk 0:02:22]} 31. Na1 {[%clk 0:01:19.4]} 31... Rb4 {[%clk 0:02:20]}
32. c3 {[%clk 0:01:18.8]} 32... Rb2 {[%clk 0:02:20.1]} 33. g5 {[%clk 0:01:08.6]}
33... hxg5 {[%clk 0:02:19.4]} 34. hxg5 {[%clk 0:01:09.5]} 34... Bb5+ {[%clk
0:02:19.2]} 35. Kg1 {[%clk 0:01:08.7]} 35... Bd3 {[%clk 0:02:19.1]} 36. Rd1
{[%clk 0:01:07.2]} 36... Be4 {[%clk 0:02:18.6]} 37. Re1 {[%clk 0:01:01]} 37...
Ke6 {[%clk 0:02:18.1]} 38. c4 {[%clk 0:01:00.5]} 38... c6 {[%clk 0:02:12.4]} 39.
Kf1 {[%clk 0:00:56.1]} 39... Kf5 {[%clk 0:02:11.2]} 40. cxd5 {[%clk 0:00:54]}
40... cxd5 {[%clk 0:02:11]} 41. Rc1 {[%clk 0:00:53.5]} 41... Kf4 {[%clk
0:02:10.8]} 42. Rc7 {[%clk 0:00:52.8]} 42... Rb1+ {[%clk 0:02:10.5]} 43. Kf2
{[%clk 0:00:51.9]} 43... Rxa1 {[%clk 0:02:10.8]} 44. Rxf7+ {[%clk 0:00:52.4]}
44... Kxg5 {[%clk 0:02:11]} 45. Rxg7+ {[%clk 0:00:52.2]} 45... Kf5 {[%clk
0:02:11.1]} 46. Rf7+ {[%clk 0:00:51.9]} 46... Ke6 {[%clk 0:02:11.1]} 47. Rf6+
{[%clk 0:00:51.5]} 47... Ke7 {[%clk 0:02:11.5]} 48. Rxb6 {[%clk 0:00:52.4]}
48... Ra4 {[%clk 0:02:10.5]} 49. Ke3 {[%clk 0:00:51.1]} 49... Ra3+ {[%clk
0:02:04.5]} 50. Ke2 {[%clk 0:00:50.6]} 50... Rd3 {[%clk 0:02:04.1]} 51. Rb7+
{[%clk 0:00:49.4]} 51... Ke6 {[%clk 0:02:02.6]} 52. Rb6+ {[%clk 0:00:49]} 52...
Kd7 {[%clk 0:02:02.5]} 53. Rd6+ {[%clk 0:00:46.9]} 53... Ke7 {[%clk 0:02:02.4]}
54. Rxd5 {[%clk 0:00:45.6]} 54... Rh3 {[%clk 0:01:57.9]} 55. Ra5 {[%clk
0:00:43.9]} 55... Ke6 {[%clk 0:01:57.8]} 56. Ra6+ {[%clk 0:00:41.6]} 56... Kf5
{[%clk 0:01:55.3]} 57. Rf6+ {[%clk 0:00:40.7]} 57... Kg5 {[%clk 0:01:55.5]} 58.
Rf8 {[%clk 0:00:38.9]} 58... Bd5 {[%clk 0:01:53.7]} 59. Rd8 {[%clk 0:00:36.9]}
59... Bf3+ {[%clk 0:01:51]} 60. Kf2 {[%clk 0:00:35.6]} 60... Bg4 {[%clk
0:01:48.6]} 61. d5 {[%clk 0:00:34.2]} 61... Kf5 {[%clk 0:01:45.1]} 62. e6 {[%clk
0:00:32.8]} 62... Kf6 {[%clk 0:01:41.6]} 63. Rf8+ {[%clk 0:00:28.7]} 63... Ke7
{[%clk 0:01:41.1]} 64. Rf7+ {[%clk 0:00:27.2]} 64... Ke8 {[%clk 0:01:38.3]} 65.
Rg7 {[%clk 0:00:25.1]} 65... Bf5 {[%clk 0:01:38]} 66. Rg5 {[%clk 0:00:21.6]}
66... Bxe6 {[%clk 0:01:33.9]} 67. dxe6 {[%clk 0:00:20.9]} 67... Ke7 {[%clk
0:01:34.2]} 68. Kg2 {[%clk 0:00:19.1]} 68... Re3 {[%clk 0:01:33.9]} 69. Rg6
{[%clk 0:00:18.5]} 69... Rxe6 {[%clk 0:01:33.9]} 70. Rxe6+ {[%clk 0:00:19.3]}
70... Kxe6 {[%clk 0:01:34.4]} 1/2-1/2

[Event "*** SCC Grand Prix: Titled Tuesday Blitz"]
[Site "Chess.com"]
[Date "2020.08.11"]
[Round "9"]
[White "GMJustin"]
[Black "szachuspl"]
[Result "0-1"]
[WhiteElo "2266"]
[BlackElo "2505"]
[TimeControl "180+1"]
[EndTime "11:45:38 PDT"]
[Termination "szachuspl won on time"]

1. e4 {[%clk 0:02:40.8]} 1... c5 {[%clk 0:02:57.6]} 2. Nf3 {[%clk 0:02:40]} 2...
e6 {[%clk 0:02:57.9]} 3. d4 {[%clk 0:02:37.8]} 3... cxd4 {[%clk 0:02:58.1]} 4.
Nxd4 {[%clk 0:02:38]} 4... Nc6 {[%clk 0:02:57.7]} 5. Nc3 {[%clk 0:02:37.5]} 5...
a6 {[%clk 0:02:57.5]} 6. Nxc6 {[%clk 0:02:27.6]} 6... bxc6 {[%clk 0:02:57.2]} 7.
Bd3 {[%clk 0:02:25.7]} 7... d5 {[%clk 0:02:57.2]} 8. O-O {[%clk 0:02:25.3]} 8...
Nf6 {[%clk 0:02:57.1]} 9. Re1 {[%clk 0:02:17.9]} 9... Be7 {[%clk 0:02:57.1]} 10.
e5 {[%clk 0:02:17.1]} 10... Nd7 {[%clk 0:02:56.3]} 11. Qg4 {[%clk 0:02:16.6]}
11... Kf8 {[%clk 0:02:51]} 12. b3 {[%clk 0:02:10.5]} 12... h5 {[%clk 0:02:50]}
13. Qf4 {[%clk 0:01:59.7]} 13... g5 {[%clk 0:02:50]} 14. Qf3 {[%clk 0:01:42.5]}
14... c5 {[%clk 0:02:46.8]} 15. Bg6 {[%clk 0:01:25.2]} 15... Qe8 {[%clk
0:02:17.8]} 16. Bxh5 {[%clk 0:01:22.7]} 16... Bb7 {[%clk 0:02:11.4]} 17. h3
{[%clk 0:01:19.1]} 17... Rb8 {[%clk 0:02:08.8]} 18. Bg4 {[%clk 0:01:11.6]} 18...
Kg7 {[%clk 0:02:06.9]} 19. Qg3 {[%clk 0:01:08.3]} 19... Qg8 {[%clk 0:02:01.3]}
20. f4 {[%clk 0:00:50.3]} 20... gxf4 {[%clk 0:01:57.7]} 21. Qxf4 {[%clk
0:00:47.6]} 21... Rh7 {[%clk 0:01:37.7]} 22. Bd2 {[%clk 0:00:33.3]} 22... Kh8
{[%clk 0:01:32.3]} 23. Rf1 {[%clk 0:00:33.5]} 23... Rf8 {[%clk 0:01:27.7]} 24.
Rae1 {[%clk 0:00:32.6]} 24... Qg6 {[%clk 0:01:24.9]} 25. Re2 {[%clk 0:00:19.6]}
25... Rg8 {[%clk 0:01:18.4]} 26. Bc1 {[%clk 0:00:04.7]} 26... Rgg7 {[%clk
0:01:11.7]} 27. Nd1 {[%clk 0:00:04.7]} 27... d4 {[%clk 0:01:09.9]} 28. Nf2
{[%clk 0:00:02.2]} 28... Bg5 {[%clk 0:01:05.1]} 29. Qxg5 {[%clk 0:00:01.7]}
29... Qxg5 {[%clk 0:01:05.4]} 30. Bxg5 {[%clk 0:00:01.8]} 30... Rxg5 {[%clk
0:01:06.3]} 31. Nd3 {[%clk 0:00:02]} 31... Bd5 {[%clk 0:01:02.2]} 32. Bf3 {[%clk
0:00:02.1]} 32... Bxf3 {[%clk 0:00:57.6]} 33. Rxf3 {[%clk 0:00:02.2]} 33... Rhg7
{[%clk 0:00:57.8]} 34. g4 {[%clk 0:00:02.5]} 34... Rh7 {[%clk 0:00:57.6]} 35.
Kg2 {[%clk 0:00:01.4]} 35... Kg8 {[%clk 0:00:57.8]} 36. Kg3 {[%clk 0:00:01.6]}
36... Kf8 {[%clk 0:00:56.9]} 37. h4 {[%clk 0:00:01.7]} 37... Rg8 {[%clk
0:00:56.9]} 38. g5 {[%clk 0:00:02.2]} 38... Ke7 {[%clk 0:00:57.3]} 39. Re4
{[%clk 0:00:02]} 39... Rgh8 {[%clk 0:00:57.5]} 40. Ref4 {[%clk 0:00:02.4]} 40...
Ke8 {[%clk 0:00:56.3]} 41. Kg4 {[%clk 0:00:02.8]} 41... Rxh4+ {[%clk 0:00:50.8]}
42. Kg3 {[%clk 0:00:02.7]} 42... Rh3+ {[%clk 0:00:50.8]} 43. Kg2 {[%clk
0:00:02.9]} 43... R3h7 {[%clk 0:00:50.4]} 44. Rg3 {[%clk 0:00:02.4]} 44... Rg7
{[%clk 0:00:50.1]} 0-1